{"text_format":"3","workbook":"xlsx","n_sheets":2,"sheets":["Pakkumise vorm","Kulude liigendus"],"not_rendered":{"charts":1,"images":2,"defined_names":4},"read":"whole","date_system":"1900"}

{"sheet":"Pakkumise vorm","index":0,"n_rows":48,"n_cols":7,"rows_kept":48,"merged":[[15,1,25,5],[29,1,31,5],[35,1,37,5],[43,1,45,5]]}
[]
[null,"EHITUSTÖÖDE PAKKUMISE VORM",{"$nulls":4}," "]
[]
[]
[null,"OMANIKU ANDMED",null,null,"TÖÖVÕTJA ANDMED"]
[null,"Nimi","Kalle Mets",null,"Ettevõte","Fabrikam, Inc."]
[null,"Aadress","Jõhvika 123",null,"Nimi","Andres Ots"]
[null,"Linn, maakond, sihtnumber","12345 Roheküla, Läänemaa",null,"Aadress","Lõuna 321"]
[null,"Telefon",8885550111,null,"Linn, maakond, sihtnumber","12345 Roheküla, Läänemaa"]
[null,"E-post","kalle@proseware.com",null,"Telefon",8885550123]
[{"$nulls":4},"E-post","andres@fabrikam.com"]
[null,"Projekti nimi","Ettevõtte välistrepp",null,"Lõpuleviimiskuupäev","2013-07-14"]
[]
[null,"TÖÖDE MAHT"]
[]
[null,"Siia saate sisestada projekti ulatuse või tööde mahu. Sisestage kõik soovitud andmed. See siin on projekt suure trepi ehitamiseks. Kasutame raami ehitamiseks ainult laudu mõõtudega 2x4 ja 2x8 lumber ning talatoendeid (kronsteine). Trepiastmed lõigatakse laudadest mõõtudega 2x4. Kasutatakse ainult vähemalt 50 mm kruvisid. Naelad on vähemalt 35 mm. Trepiastme kandevõime peab olema vähemalt 225 kg. Trepp peab algama maja välisuksega samal tasapinnal. Maja külge kinnitatakse lisaaste. Töövõtja kohus on ehitusplats koristada."]
{"$rows_empty":11}
[null,"EI SISALDA"]
[]
[null,"Käsipuid ei paigaldata. Maapinna valmistab ette omanik. Trepi värvib omanik."]
[]
[]
[]
[null,"ETTEVÕTTE ETTEPANEK"]
[]
[null,"Meie, Fabrikam, Inc., teeme ettepaneku, et eeltoodud mahus tööd viiakse lõpule 14. juuliks 2011 maksumusega 476.43 €."]
[]
[]
[]
[null,"Esitaja (ettevõtte esindaja)",{"$nulls":3},"Kuupäev"]
[]
[null,"OMANIKU HEAKSKIIT"]
[]
[null,"Mina, Kalle Mets, aktsepteerin eeltöödud mahus tööd, mis tuleb lõpule viia 14. juuliks 2011 järgmise summa eest: 476.43 €."]
[]
[]
[]
[null,"Esitaja (koduomanik või volitatud esindaja)",{"$nulls":3},"Kuupäev"]

{"sheet":"Kulude liigendus","index":1,"n_rows":48,"n_cols":6,"rows_kept":48,"merged":[[43,3,43,4],[44,3,44,4],[45,3,45,4],[46,3,46,4],[47,3,47,4],[48,3,48,4],[49,3,49,4],[50,3,50,4]]}
[]
[null,"PAKKUMISE KULUDE KOKKUVÕTE",{"$nulls":3}," "]
[]
[]
[null,"MATERJALIDE JA KULUDE LOEND"]
[]
[null,"Kogus","Kirjeldus","Kulu","Kokku"," "]
[null,5,"2x8x10 laud",{"v":6.75,"d":"6.75 €"},{"$f":"PakkumineÜksused[Kulu]*PakkumineÜksused[Kogus]","v":{"v":33.75,"d":"33.75 €"}},{"$f":"_xlfn.RANK.EQ(PakkumineÜksused[[#This Row],[Kokku]],PakkumineÜksused[Kokku])","v":4}]
[null,20,"2x4x10 laud",{"v":4.97,"d":"4.97 €"},{"$f":"PakkumineÜksused[Kulu]*PakkumineÜksused[Kogus]","v":{"v":99.39999999999999,"d":"99.40 €"}},{"$f":"_xlfn.RANK.EQ(PakkumineÜksused[[#This Row],[Kokku]],PakkumineÜksused[Kokku])","v":2}]
[null,30,"Talatoendid",{"v":2.49,"d":"2.49 €"},{"$f":"PakkumineÜksused[Kulu]*PakkumineÜksused[Kogus]","v":{"v":74.7,"d":"74.70 €"}},{"$f":"_xlfn.RANK.EQ(PakkumineÜksused[[#This Row],[Kokku]],PakkumineÜksused[Kokku])","v":3}]
[null,2,"Karp kruvisid, 50 mm",{"v":6.67,"d":"6.67 €"},{"$f":"PakkumineÜksused[Kulu]*PakkumineÜksused[Kogus]","v":{"v":13.34,"d":"13.34 €"}},{"$f":"_xlfn.RANK.EQ(PakkumineÜksused[[#This Row],[Kokku]],PakkumineÜksused[Kokku])","v":6}]
[null,2,"Karp naelu, 35 mm",{"v":3.25,"d":"3.25 €"},{"$f":"PakkumineÜksused[Kulu]*PakkumineÜksused[Kogus]","v":{"v":6.5,"d":"6.50 €"}},{"$f":"_xlfn.RANK.EQ(PakkumineÜksused[[#This Row],[Kokku]],PakkumineÜksused[Kokku])","v":7}]
[null,2,"Kindapaar, nahk",{"v":7.75,"d":"7.75 €"},{"$f":"PakkumineÜksused[Kulu]*PakkumineÜksused[Kogus]","v":{"v":15.5,"d":"15.50 €"}},{"$f":"_xlfn.RANK.EQ(PakkumineÜksused[[#This Row],[Kokku]],PakkumineÜksused[Kokku])","v":5}]
[null,2,"Tööjõukulud",{"v":100,"d":"100.00 €"},{"$f":"PakkumineÜksused[Kulu]*PakkumineÜksused[Kogus]","v":{"v":200,"d":"200.00 €"}},{"$f":"_xlfn.RANK.EQ(PakkumineÜksused[[#This Row],[Kokku]],PakkumineÜksused[Kokku])","v":1}]
[{"$nulls":4},{"$f":"PakkumineÜksused[Kulu]*PakkumineÜksused[Kogus]","v":0},{"$f":"_xlfn.RANK.EQ(PakkumineÜksused[[#This Row],[Kokku]],PakkumineÜksused[Kokku])","v":8}]
[{"$nulls":4},{"$f":"PakkumineÜksused[Kulu]*PakkumineÜksused[Kogus]","v":0},{"$f":"_xlfn.RANK.EQ(PakkumineÜksused[[#This Row],[Kokku]],PakkumineÜksused[Kokku])","v":8}]
[{"$nulls":4},{"$f":"PakkumineÜksused[Kulu]*PakkumineÜksused[Kogus]","v":0},{"$f":"_xlfn.RANK.EQ(PakkumineÜksused[[#This Row],[Kokku]],PakkumineÜksused[Kokku])","v":8}]
[{"$nulls":4},{"$f":"PakkumineÜksused[Kulu]*PakkumineÜksused[Kogus]","v":0},{"$f":"_xlfn.RANK.EQ(PakkumineÜksused[[#This Row],[Kokku]],PakkumineÜksused[Kokku])","v":8}]
[{"$nulls":4},{"$f":"PakkumineÜksused[Kulu]*PakkumineÜksused[Kogus]","v":0},{"$f":"_xlfn.RANK.EQ(PakkumineÜksused[[#This Row],[Kokku]],PakkumineÜksused[Kokku])","v":8}]
[{"$nulls":4},{"$f":"PakkumineÜksused[Kulu]*PakkumineÜksused[Kogus]","v":0},{"$f":"_xlfn.RANK.EQ(PakkumineÜksused[[#This Row],[Kokku]],PakkumineÜksused[Kokku])","v":8}]
[{"$nulls":4},{"$f":"PakkumineÜksused[Kulu]*PakkumineÜksused[Kogus]","v":0},{"$f":"_xlfn.RANK.EQ(PakkumineÜksused[[#This Row],[Kokku]],PakkumineÜksused[Kokku])","v":8}]
[{"$nulls":4},{"$f":"PakkumineÜksused[Kulu]*PakkumineÜksused[Kogus]","v":0},{"$f":"_xlfn.RANK.EQ(PakkumineÜksused[[#This Row],[Kokku]],PakkumineÜksused[Kokku])","v":8}]
[{"$nulls":4},{"$f":"PakkumineÜksused[Kulu]*PakkumineÜksused[Kogus]","v":0},{"$f":"_xlfn.RANK.EQ(PakkumineÜksused[[#This Row],[Kokku]],PakkumineÜksused[Kokku])","v":8}]
[{"$nulls":4},{"$f":"PakkumineÜksused[Kulu]*PakkumineÜksused[Kogus]","v":0},{"$f":"_xlfn.RANK.EQ(PakkumineÜksused[[#This Row],[Kokku]],PakkumineÜksused[Kokku])","v":8}]
[{"$nulls":4},{"$f":"PakkumineÜksused[Kulu]*PakkumineÜksused[Kogus]","v":0},{"$f":"_xlfn.RANK.EQ(PakkumineÜksused[[#This Row],[Kokku]],PakkumineÜksused[Kokku])","v":8}]
[{"$nulls":4},{"$f":"PakkumineÜksused[Kulu]*PakkumineÜksused[Kogus]","v":0},{"$f":"_xlfn.RANK.EQ(PakkumineÜksused[[#This Row],[Kokku]],PakkumineÜksused[Kokku])","v":8}]
[{"$nulls":4},{"$f":"PakkumineÜksused[Kulu]*PakkumineÜksused[Kogus]","v":0},{"$f":"_xlfn.RANK.EQ(PakkumineÜksused[[#This Row],[Kokku]],PakkumineÜksused[Kokku])","v":8}]
[{"$nulls":4},{"$f":"PakkumineÜksused[Kulu]*PakkumineÜksused[Kogus]","v":0},{"$f":"_xlfn.RANK.EQ(PakkumineÜksused[[#This Row],[Kokku]],PakkumineÜksused[Kokku])","v":8}]
[{"$nulls":4},{"$f":"PakkumineÜksused[Kulu]*PakkumineÜksused[Kogus]","v":0},{"$f":"_xlfn.RANK.EQ(PakkumineÜksused[[#This Row],[Kokku]],PakkumineÜksused[Kokku])","v":8}]
[{"$nulls":4},{"$f":"PakkumineÜksused[Kulu]*PakkumineÜksused[Kogus]","v":0},{"$f":"_xlfn.RANK.EQ(PakkumineÜksused[[#This Row],[Kokku]],PakkumineÜksused[Kokku])","v":8}]
[1,{"$nulls":3},{"$f":"PakkumineÜksused[Kulu]*PakkumineÜksused[Kogus]","v":0},{"$f":"_xlfn.RANK.EQ(PakkumineÜksused[[#This Row],[Kokku]],PakkumineÜksused[Kokku])","v":8}]
[2,null,null,"Kokku",{"$f":"SUBTOTAL(109,PakkumineÜksused[Kokku])","v":{"v":443.18999999999994,"d":"443.19 €"}},{"$f":"SUBTOTAL(109,PakkumineÜksused[[ ]])","v":164}]
[3]
[4,null,null,"Maksumäär",{"v":0.075,"d":"7.50%"}]
[5,null,null,"Maks",{"$f":"Maksumäär*PakkumineÜksused[[#Totals],[Kokku]]","v":{"v":33.23924999999999,"d":"33.24 €"}}]
[{"$nulls":3},"Üldsumma",{"$f":"Maks+PakkumineÜksused[[#Totals],[Kokku]]","v":{"v":476.4292499999999,"d":"476.43 €"}}]
[]
[]
[]
[null,"MATERJALIDE JA KULUDE ÜKSIKASJAD"]
[]
[]
[null,null,"KOKKU","MÄRKUSED"]
[null,{"$f":"INDEX(PakkumineÜksused[],MATCH(A31,PakkumineÜksused[[ ]],0),2)","v":"Tööjõukulud"},{"$f":"INDEX(PakkumineÜksused[],MATCH(A31,PakkumineÜksused[[ ]],0),4)","v":{"v":200,"d":"$200.00"}}]
[null,{"$f":"INDEX(PakkumineÜksused[],MATCH(A32,PakkumineÜksused[[ ]],0),2)","v":"2x4x10 laud"},{"$f":"INDEX(PakkumineÜksused[],MATCH(A32,PakkumineÜksused[[ ]],0),4)","v":{"v":99.39999999999999,"d":"$99.40"}}]
[null,{"$f":"INDEX(PakkumineÜksused[],MATCH(A33,PakkumineÜksused[[ ]],0),2)","v":"Talatoendid"},{"$f":"INDEX(PakkumineÜksused[],MATCH(A33,PakkumineÜksused[[ ]],0),4)","v":{"v":74.7,"d":"$74.70"}}]
[null,{"$f":"INDEX(PakkumineÜksused[],MATCH(A34,PakkumineÜksused[[ ]],0),2)","v":"2x8x10 laud"},{"$f":"INDEX(PakkumineÜksused[],MATCH(A34,PakkumineÜksused[[ ]],0),4)","v":{"v":33.75,"d":"$33.75"}}]
[null,{"$f":"INDEX(PakkumineÜksused[],MATCH(A35,PakkumineÜksused[[ ]],0),2)","v":"Kindapaar, nahk"},{"$f":"INDEX(PakkumineÜksused[],MATCH(A35,PakkumineÜksused[[ ]],0),4)","v":{"v":15.5,"d":"$15.50"}}]